fUSD/lending_fUSD_20240118
["ID","MTS","AMOUNT","RATE_DAILY","PERIOD"]
[312037422,1705567840604,-307.08993126,0.00021917,2]
[312037424,1705567840613,-549.7,0.00021917,2]
[312037425,1705567840622,-830.69,0.00021917,2]
[312037426,1705567840631,-500.0,0.00021917,2]
[312037427,1705567840640,-500.0,0.00021917,2]
[312037428,1705567840649,-661.06,0.00021917,2]
[312037429,1705567840658,-500.0,0.00021917,2]
[312037430,1705567840668,-329.55,0.00021917,2]
[312037431,1705567840677,-172.42,0.00021917,2]
[312037432,1705567840689,-500.0,0.00021917,2]
[312037433,1705567840698,-500.0,0.00021917,2]
[312037434,1705567840708,-500.0,0.00021917,2]
[312037435,1705567840717,-500.0,0.00021917,2]
[312037436,1705567840726,-500.0,0.00021917,2]
[312037437,1705567840735,-507.33438992,0.00021917,2]
[312037438,1705567840744,-500.0,0.00021917,2]
[312037439,1705567840753,-500.0,0.00021917,2]
[312037440,1705567840763,-500.0,0.00021917,2]
[312037441,1705567840772,-500.0,0.00021917,2]
[312037442,1705567840781,-500.0,0.00021917,2]
[312037443,1705567840790,-500.0,0.00021917,2]
[312037444,1705567840799,-500.0,0.00021917,2]
[312037445,1705567840808,-500.0,0.00021917,2]
[312037446,1705567840818,-506.69822752,0.00021917,2]
[312037447,1705567840830,-500.0,0.00021917,2]
[312037448,1705567840839,-643.06,0.00021917,2]
[312037449,1705567840849,-500.0,0.00021917,2]
[312037450,1705567840858,-500.0,0.00021917,2]
[312037451,1705567840867,-173.47023456,0.00021917,2]
[312037452,1705567840876,-467.34391527,0.00021917,2]
[312037453,1705567840885,-608.66,0.00021917,2]
[312037454,1705567840894,-500.0,0.00021917,2]
[312037455,1705567840904,-500.0,0.00021917,2]
[312037456,1705567840913,-500.0,0.00021917,2]
[312037457,1705567840922,-500.0,0.00021917,2]
[312037458,1705567840932,-500.0,0.00021917,2]
[312037459,1705567840941,-500.0,0.00021917,2]
[312037460,1705567840951,-500.0,0.00021917,2]
[312037461,1705567840961,-500.0,0.00021917,2]
[312037462,1705567840970,-500.0,0.00021917,2]
[312037463,1705567840979,-500.0,0.00021917,2]
[312037464,1705567840988,-505.63902613,0.00021917,2]
[312037465,1705567840997,-500.0,0.00021917,2]
[312037466,1705567841007,-500.0,0.00021917,2]
[312037467,1705567841016,-500.0,0.00021917,2]
[312037468,1705567841025,-523.07894434,0.00021917,2]
[312037469,1705567841035,-500.0,0.00021917,2]
[312037470,1705567841044,-500.0,0.00021917,2]
[312037471,1705567841053,-500.0,0.00021917,2]
[312037472,1705567841063,-500.0,0.00021917,2]
[312037473,1705567841075,-500.0,0.00021917,2]
[312037474,1705567841084,-500.0,0.00021917,2]
[312037475,1705567841094,-500.0,0.00021917,2]
[312037476,1705567841103,-500.0,0.00021917,2]
[312037477,1705567841113,-500.0,0.00021917,2]
[312037478,1705567841125,-500.0,0.00021917,2]
[312037479,1705567841135,-500.0,0.00021917,2]
[312037480,1705567841145,-500.0,0.00021917,2]
[312037481,1705567841154,-500.0,0.00021917,2]
[312037482,1705567841164,-500.0,0.00021917,2]
[312037483,1705567841173,-500.0,0.00021917,2]
[312037484,1705567841183,-500.0,0.00021917,2]
[312037485,1705567841193,-500.0,0.00021917,2]
[312037486,1705567841202,-500.0,0.00021917,2]
[312037487,1705567841211,-504.65195245,0.00021917,2]
[312037488,1705567841221,-502.04,0.00021917,2]
[312037489,1705567841230,-500.0,0.00021917,2]
[312037490,1705567841240,-509.22548085,0.00021917,2]
[312037491,1705567841250,-537.46038171,0.00021917,2]
[312037492,1705567841259,-500.0,0.00021917,2]
[312037493,1705567841269,-611.53,0.00021917,2]
[312037494,1705567841278,-501.97983888,0.00021917,2]
[312037495,1705567841287,-500.0,0.00021917,2]
[312037496,1705567841297,-500.0,0.00021917,2]
[312037497,1705567841307,-500.0,0.00021917,2]
[312037498,1705567841316,-500.0,0.00021917,2]
[312037499,1705567841329,-1936.38,0.00021917,2]
[312037500,1705567841339,-931.42,0.00021917,2]
[312037501,1705567841349,-500.0,0.00021917,2]
[312037502,1705567841359,-228.99581713,0.00021917,2]
[312037503,1705567841368,-275.07711272,0.00021917,2]
[312037504,1705567841378,-500.0,0.00021917,2]
[312037505,1705567841393,-1339.97,0.00021917,2]
[312037506,1705567841402,-636.95,0.00021917,2]
[312037507,1705567841412,-500.0,0.00021917,2]
[312037508,1705567841421,-3007.44,0.00021917,2]
[312037509,1705567841431,-500.0,0.00021917,2]
[312037510,1705567841441,-500.0,0.00021917,2]
[312037511,1705567841451,-717.7,0.00021917,2]
[312037512,1705567841461,-486.24922422,0.00021917,2]
[312037513,1705567841471,-1598.26,0.00021917,2]
[312037514,1705567841480,-500.0,0.00021917,2]
[312037515,1705567841490,-2109.79,0.00021917,2]
[312037516,1705567841500,-500.0,0.00021917,2]
[312037517,1705567841509,-500.0,0.00021917,2]
[312037518,1705567841518,-504.32805105,0.00021917,2]
[312037519,1705567841527,-5418.62,0.00021917,2]
[312037520,1705567841536,-517.50061693,0.00021917,2]
[312037521,1705567841546,-500.0,0.00021917,2]
[312037522,1705567841555,-1985.11,0.00021917,2]
[312037523,1705567841564,-500.0,0.00021917,2]
[312037524,1705567841578,-654.13,0.00021917,2]
[312037525,1705567841588,-500.0,0.00021917,2]
[312037526,1705567841597,-500.0,0.00021917,2]
[312037527,1705567841607,-507.4162157,0.00021917,2]
[312037528,1705567841616,-781.69,0.00021917,2]
[312037529,1705567841625,-500.0,0.00021917,2]
[312037530,1705567841634,-500.0,0.00021917,2]
[312037531,1705567841644,-500.0,0.00021917,2]
[312037532,1705567841654,-500.0,0.00021917,2]
[312037533,1705567841663,-500.0,0.00021917,2]
[312037534,1705567841672,-500.0,0.00021917,2]
[312037535,1705567841682,-500.0,0.00021917,2]
[312037536,1705567841696,-499.03,0.00021917,2]
[312037537,1705567841705,-500.0,0.00021917,2]
[312037538,1705567841714,-500.0,0.00021917,2]
[312037539,1705567841724,-500.0,0.00021917,2]
[312037540,1705567841735,-500.0,0.00021917,2]
[312037541,1705567841744,-500.0,0.00021917,2]
[312037542,1705567841753,-500.0,0.00021917,2]
[312037543,1705567841762,-1095.37,0.00021917,2]
[312037544,1705567841773,-500.0,0.00021917,2]
[312037545,1705567841782,-1703.95,0.00021917,2]
[312037546,1705567841793,-500.0,0.00021917,2]
[312037547,1705567841802,-500.0,0.00021917,2]
[312037548,1705567841812,-975.3,0.00021917,2]
[312037549,1705567841823,-500.0,0.00021917,2]
[312037550,1705567841833,-711.0,0.00021917,2]
[312037551,1705567841842,-500.0,0.00021917,2]
[312037552,1705567841851,-567.36945561,0.00021917,2]
[312037553,1705567841862,-500.0,0.00021917,2]
[312037554,1705567841871,-1238.22,0.00021917,2]
[312037555,1705567841881,-557.45,0.00021917,2]
[312037556,1705567841890,-500.0,0.00021917,2]
[312037557,1705567841900,-500.0,0.00021917,2]
[312037558,1705567841909,-500.0,0.00021917,2]
[312037559,1705567841919,-11407.95,0.00021917,2]
[312037560,1705567841928,-500.0,0.00021917,2]
[312037561,1705567841937,-500.0,0.00021917,2]
[312037562,1705567841946,-2438.38,0.00021917,2]
[312037563,1705567841956,-533.91,0.00021917,2]
[312037564,1705567841965,-500.0,0.00021917,2]
[312037565,1705567841974,-500.0,0.00021917,2]
[312037566,1705567841984,-500.0,0.00021917,2]
[312037567,1705567841993,-2492.22,0.00021917,2]
[312037568,1705567842002,-500.0,0.00021917,2]
[312037569,1705567842011,-1219.56,0.00021917,2]
[312037570,1705567842020,-500.0,0.00021917,2]
[312037571,1705567842029,-366.44766194,0.00021917,2]
[312037572,1705567842039,-506.67924714,0.00021917,2]
[312037573,1705567842048,-500.0,0.00021917,2]
[312037574,1705567842058,-500.0,0.00021917,2]
[312037575,1705567842068,-500.0,0.00021917,2]
[312037576,1705567842079,-500.0,0.00021917,2]
[312037577,1705567842089,-775.04,0.00021917,2]
[312037578,1705567842098,-500.0,0.00021917,2]
[312037579,1705567842108,-500.0,0.00021917,2]
[312037580,1705567842117,-500.0,0.00021917,2]
[312037581,1705567842130,-500.0,0.00021917,2]
[312037582,1705567842140,-500.0,0.00021917,2]
[312037583,1705567842149,-625.17,0.00021917,2]
[312037584,1705567842158,-500.0,0.00021917,2]
[312037585,1705567842167,-500.0,0.00021917,2]
[312037586,1705567842176,-500.0,0.00021917,2]
[312037587,1705567842185,-500.0,0.00021917,2]
[312037588,1705567842194,-500.0,0.00021917,2]
[312037589,1705567842203,-2702.29,0.00021917,2]
[312037590,1705567842212,-1422.82,0.00021917,2]
[312037591,1705567842222,-500.0,0.00021917,2]
[312037592,1705567842231,-503.29201881,0.00021917,2]
[312037593,1705567842240,-569.81,0.00021917,2]
[312037594,1705567842250,-500.0,0.00021917,2]
[312037595,1705567842260,-500.0,0.00021917,2]
[312037596,1705567842269,-3897.63,0.00021917,2]
[312037597,1705567842278,-500.0,0.00021917,2]
[312037598,1705567842287,-564.2,0.00021917,2]
[312037599,1705567842296,-380.8,0.00021917,2]
[312037600,1705567842305,-517.38,0.00021917,2]
[312037601,1705567842314,-1305.5,0.00021917,2]
[312037602,1705567842324,-500.0,0.00021917,2]
[312037603,1705567842334,-500.0,0.00021917,2]
[312037604,1705567842343,-500.0,0.00021917,2]
[312037605,1705567842353,-500.0,0.00021917,2]
[312037606,1705567842362,-500.0,0.00021917,2]
[312037607,1705567842371,-500.0,0.00021917,2]
[312037608,1705567842380,-715.22,0.00021917,2]
[312037609,1705567842390,-500.0,0.00021917,2]
[312037610,1705567842399,-500.0,0.00021917,2]
[312037611,1705567842407,-500.0,0.00021917,2]
[312037612,1705567842417,-500.0,0.00021917,2]
[312037613,1705567842426,-1697.47,0.00021917,2]
[312037614,1705567842435,-555.68,0.00021917,2]
[312037615,1705567842444,-328.9060057,0.00021917,2]
[312037616,1705567842453,-995.02,0.00021917,2]
[312037617,1705567842463,-1176.22,0.00021917,2]
[312037618,1705567842472,-500.0,0.00021917,2]
[312037619,1705567842481,-500.0,0.00021917,2]
[312037620,1705567842490,-500.0,0.00021917,2]
[312037621,1705567842500,-500.0,0.00021917,2]
[312037622,1705567842509,-500.0,0.00021917,2]
[312037623,1705567842518,-536.16,0.00021917,2]
[312037624,1705567842527,-500.0,0.00021917,2]
[312037625,1705567842536,-500.0,0.00021917,2]
[312037626,1705567842546,-500.0,0.00021917,2]
[312037627,1705567842557,-500.0,0.00021917,2]
[312037628,1705567842566,-500.0,0.00021917,2]
[312037629,1705567842581,-543.51,0.00021917,2]
[312037630,1705567842590,-500.0,0.00021917,2]
[312037631,1705567842599,-500.0,0.00021917,2]
[312037632,1705567842609,-640.73,0.00021917,2]
[312037633,1705567842620,-500.0,0.00021917,2]
[312037634,1705567842630,-1216.46,0.00021917,2]
[312037635,1705567842641,-500.0,0.00021917,2]
[312037636,1705567842650,-500.0,0.00021917,2]
[312037637,1705567842661,-644.14,0.00021917,2]
[312037638,1705567842670,-500.0,0.00021917,2]
[312037639,1705567842681,-500.0,0.00021917,2]
[312037640,1705567842693,-725.46,0.00021917,2]
[312037641,1705567842703,-858.83,0.00021917,2]
[312037642,1705567842713,-500.0,0.00021917,2]
[312037643,1705567842722,-500.0,0.00021917,2]
[312037644,1705567842732,-1070.85,0.00021917,2]
[312037645,1705567842742,-500.0,0.00021917,2]
[312037646,1705567842752,-500.0,0.00021917,2]
[312037647,1705567842762,-500.0,0.00021917,2]
[312037648,1705567842773,-500.0,0.00021917,2]
[312037649,1705567842783,-286.25110628,0.00021917,2]
[312037650,1705567842793,-500.0,0.00021917,2]
[312037651,1705567842802,-500.0,0.00021917,2]
[312037652,1705567842812,-500.0,0.00021917,2]
[312037653,1705567842822,-554.02,0.00021917,2]
[312037654,1705567842834,-557.14,0.00021917,2]
[312037655,1705567842844,-500.0,0.00021917,2]
[312037656,1705567842853,-500.0,0.00021917,2]
[312037657,1705567842863,-7375.31,0.00021917,2]
[312037658,1705567842873,-500.0,0.00021917,2]
[312037659,1705567842883,-500.0,0.00021917,2]
[312037660,1705567842892,-500.0,0.00021917,2]
[312037662,1705567842902,-500.0,0.00021917,2]
[312037664,1705567842911,-500.0,0.00021917,2]
[312037666,1705567842921,-3675.59,0.00021917,2]
[312037668,1705567842930,-507.37,0.00021917,2]
[312037670,1705567842939,-596.95,0.00021917,2]
[312037672,1705567842949,-576.93357129,0.00021917,2]
[312037674,1705567842958,-500.0,0.00021917,2]
[312037676,1705567842968,-500.0,0.00021917,2]
[312037678,1705567842977,-523.47091786,0.00021917,2]
[312037680,1705567842986,-500.0,0.00021917,2]
[312037681,1705567842996,-500.0,0.00021917,2]
[312037682,1705567843005,-503.8172592,0.00021917,2]
[312037683,1705567843014,-1017.86,0.00021917,2]
[312037684,1705567843024,-614.04,0.00021917,2]
[312037685,1705567843033,-500.0,0.00021917,2]
[312037686,1705567843042,-500.0,0.00021917,2]
[312037687,1705567843052,-500.0,0.00021917,2]
[312037688,1705567843061,-500.0,0.00021917,2]
[312037689,1705567843071,-2031.02,0.00021917,2]
[312037690,1705567843262,-500.0,0.00021917,2]
[312037691,1705567843272,-500.0,0.00021917,2]
[312037692,1705567843281,-500.0,0.00021917,5]
[312037693,1705567843290,-1380.7,0.00021917,2]
[312037694,1705567843299,-500.0,0.00021917,2]
[312037695,1705567843309,-500.0,0.00021917,2]
[312037696,1705567843319,-503.39719602,0.00021917,2]
[312037697,1705567843330,-592.14,0.00021917,2]
[312037698,1705567843340,-853.84,0.00021917,2]
[312037699,1705567843349,-500.0,0.00021917,2]
[312037700,1705567843358,-500.0,0.00021917,2]
[312037701,1705567843367,-500.0,0.00021917,2]
[312037702,1705567843377,-755.21,0.00021917,2]
[312037703,1705567843386,-500.0,0.00021917,2]
[312037704,1705567843395,-500.0,0.00021917,2]
[312037705,1705567843405,-654.56,0.00021917,2]
[312037706,1705567843414,-687.24,0.00021917,2]
[312037707,1705567843423,-500.0,0.00021917,2]
[312037708,1705567843433,-810.56,0.00021917,2]
[312037709,1705567843442,-529.81,0.00021917,2]
[312037710,1705567843451,-691.03,0.00021917,2]
[312037711,1705567843461,-500.0,0.00021917,2]
[312037712,1705567843470,-500.0,0.00021917,2]
[312037713,1705567843482,-930.12,0.00021917,2]
[312037714,1705567843491,-500.0,0.00021917,2]
[312037715,1705567843501,-1078.05,0.00021917,2]
[312037716,1705567843511,-500.0,0.00021917,2]
[312037717,1705567843520,-500.0,0.00021917,2]
[312037718,1705567843529,-634.42,0.00021917,2]
[312037719,1705567843539,-500.0,0.00021917,2]
[312037720,1705567843549,-500.0,0.00021917,2]
[312037721,1705567843558,-500.0,0.00021917,2]
[312037722,1705567843568,-500.0,0.00021917,2]
[312037723,1705567843579,-500.0,0.00021917,2]
[312037724,1705567843589,-500.0,0.00021917,2]
[312037725,1705567843598,-913.23,0.00021917,2]
[312037727,1705567843608,-506.37663048,0.00021917,2]
[312037729,1705567843618,-500.0,0.00021917,2]
[312037731,1705567843627,-500.0,0.00021917,2]
[312037733,1705567843637,-500.0,0.00021917,2]
[312037735,1705567843646,-312.54444629,0.00021917,2]
[312037737,1705567843655,-500.0,0.00021917,2]
[312037740,1705567843663,-500.0,0.00021917,2]
[312037743,1705567843673,-500.0,0.00021917,2]
[312037747,1705567843683,-500.0,0.00021917,2]
[312037750,1705567843694,-500.0,0.00021917,2]
[312037753,1705567843704,-1509.06,0.00021917,2]
[312037754,1705567843713,-500.0,0.00021917,2]
[312037755,1705567843722,-500.0,0.00021917,2]
[312037756,1705567843732,-772.25,0.00021917,2]
[312037757,1705567843742,-500.0,0.00021917,2]
[312037758,1705567843751,-500.0,0.00021917,2]
[312037759,1705567843760,-500.0,0.00021917,2]
[312037760,1705567843771,-500.0,0.00021917,2]
[312037761,1705567843780,-500.0,0.00021917,2]
[312037762,1705567843789,-500.0,0.00021917,2]
[312037763,1705567843798,-500.0,0.00021917,2]
[312037764,1705567843808,-1080.39,0.00021917,2]
[312037765,1705567843817,-500.0,0.00021917,2]
[312037766,1705567843827,-846.77,0.00021917,2]
[312037767,1705567843837,-500.0,0.00021917,2]
[312037768,1705567843846,-500.0,0.00021917,2]
[312037769,1705567843855,-914.38,0.00021917,2]
[312037770,1705567843865,-500.0,0.00021917,2]
[312037771,1705567843874,-500.0,0.00021917,2]
[312037772,1705567843883,-500.0,0.00021917,2]
[312037773,1705567843892,-500.0,0.00021917,2]
[312037774,1705567843902,-500.0,0.00021917,2]
[312037775,1705567843911,-500.0,0.00021917,2]
[312037776,1705567843920,-500.0,0.00021917,2]
[312037777,1705567843929,-500.0,0.00021917,2]
[312037778,1705567843939,-1619.86,0.00021917,2]
[312037779,1705567843948,-718.76,0.00021917,5]
[312037780,1705567843957,-535.18815851,0.00021917,2]
[312037781,1705567843967,-1741.77,0.00021917,2]
[312037782,1705567843976,-500.0,0.00021917,2]
[312037783,1705567843985,-835.9,0.00021917,2]
[312037784,1705567843994,-502.59845815,0.00021917,2]
[312037785,1705567844004,-500.0,0.00021917,2]
[312037786,1705567844025,-507.24406193,0.00021917,2]
[312037787,1705567844035,-500.0,0.00021917,2]
[312037788,1705567844045,-500.0,0.00021917,2]
[312037789,1705567844056,-500.0,0.00021917,2]
[312037790,1705567844066,-500.0,0.00021917,2]
[312037792,1705567844077,-154.39765918,0.00021917,2]
[312037794,1705567844087,-500.0,0.00021917,2]
[312037795,1705567844097,-553.14783053,0.00021917,2]
[312037796,1705567844107,-506.31759541,0.00021917,2]
[312037797,1705567844117,-2024.63,0.00021917,2]
[312037798,1705567844127,-500.0,0.00021917,2]
[312037800,1705567844137,-500.0,0.00021917,2]
[312037802,1705567844147,-2503.52,0.00021917,2]
[312037804,1705567844156,-500.0,0.00021917,2]
[312037806,1705567844166,-500.0,0.00021917,2]
[312037808,1705567844176,-500.0,0.00021917,2]
[312037810,1705567844185,-500.0,0.00021917,2]
[312037812,1705567844195,-250.0,0.00021918,2]
[312037815,1705567844205,-675.48115555,0.00021971,2]
[312037818,1705567844215,-2250.0,0.00022,3]
[312037822,1705567844224,-207.82039875,0.00022,2]
[312037825,1705567844234,-296.06,0.00022092,2]
[312037826,1705567844244,-675.48115555,0.00022126,2]
[312037827,1705567844253,-359.24,0.0002219,2]
[312037828,1705567844262,-300.0,0.0002219,2]
[312037829,1705567844272,-300.0,0.0002219,2]
[312037830,1705567844281,-529.07942944,0.00022191,2]
[312037831,1705567844291,-500.0,0.00022191,2]
[312037832,1705567844300,-500.0,0.00022191,2]
[312037833,1705567844309,-500.0,0.00022191,2]
[312037835,1705567844319,-500.0,0.00022191,2]
[312037837,1705567844330,-500.0,0.00022191,2]
[312037839,1705567844340,-500.0,0.00022191,2]
[312037841,1705567844349,-500.0,0.00022191,2]
[312037842,1705567844359,-500.0,0.00022191,2]
[312037843,1705567844369,-500.0,0.00022191,2]
[312037844,1705567844378,-257.05947115,0.00022191,2]
[312037845,1705567844388,-500.0,0.00022191,2]
[312037846,1705567844398,-500.0,0.00022191,2]
[312037847,1705567844407,-500.0,0.00022191,2]
[312037848,1705567844416,-500.0,0.00022191,2]
[312037849,1705567844425,-323.49444993,0.00022191,2]
[312037850,1705567844435,-500.0,0.00022191,2]
[312037851,1705567844444,-403.07017658,0.00022191,2]
[312037852,1705567844454,-500.0,0.00022191,2]
[312037853,1705567844463,-500.0,0.00022191,2]
[312037854,1705567844473,-500.0,0.00022191,2]
[312037855,1705567844482,-2573.5,0.00022191,2]
[312037856,1705567844492,-500.0,0.00022191,2]
[312037857,1705567844501,-500.0,0.00022191,2]
[312037858,1705567844515,-500.0,0.00022191,2]
[312037859,1705567844525,-536.63,0.00022191,2]
[312037860,1705567844535,-552.38,0.00022191,2]
[312037861,1705567844545,-500.0,0.00022191,2]
[312037862,1705567844554,-500.0,0.00022191,2]
[312037863,1705567844565,-532.8,0.00022191,2]
[312037864,1705567844576,-500.0,0.00022191,2]
[312037865,1705567844585,-500.0,0.00022191,2]
[312037866,1705567844595,-175.41,0.00022191,2]
[312037867,1705567844605,-500.0,0.00022191,2]
[312037868,1705567844615,-543.35493137,0.00022191,2]
[312037869,1705567844624,-500.0,0.00022191,2]
[312037870,1705567844634,-516.99439985,0.00022191,2]
[312037871,1705567844644,-500.0,0.00022191,2]
[312037872,1705567844654,-500.0,0.00022191,2]
[312037873,1705567844664,-500.0,0.00022191,2]
[312037874,1705567844673,-500.0,0.00022191,2]
[312037875,1705567844683,-500.0,0.00022191,2]
[312037876,1705567844695,-500.0,0.00022191,2]
[312037877,1705567844705,-500.0,0.00022191,2]
[312037878,1705567844715,-500.0,0.00022191,2]
[312037879,1705567844725,-500.0,0.00022191,2]
[312037880,1705567844735,-237.75,0.00022191,2]
[312037881,1705567844744,-500.0,0.00022191,2]
[312037882,1705567844755,-500.0,0.00022191,2]
[312037883,1705567844765,-500.0,0.00022191,2]
[312037884,1705567844776,-500.0,0.00022191,2]
[312037885,1705567844787,-500.0,0.00022191,2]
[312037886,1705567844797,-500.0,0.00022191,2]
[312037887,1705567844806,-500.0,0.00022191,2]
[312037888,1705567844815,-500.0,0.00022191,2]
[312037889,1705567844826,-500.0,0.00022191,2]
[312037890,1705567844836,-500.0,0.00022191,2]
[312037891,1705567844847,-187.17,0.00022191,2]
[312037892,1705567844860,-500.0,0.00022191,2]
[312037893,1705567844869,-500.0,0.00022191,2]
[312037894,1705567844879,-500.0,0.00022191,2]
[312037895,1705567844888,-500.0,0.00022191,2]
[312037896,1705567844898,-500.0,0.00022191,2]
[312037897,1705567844907,-830.69,0.00022191,2]
[312037898,1705567844917,-500.0,0.00022191,2]
[312037899,1705567844927,-661.06,0.00022191,2]
[312037900,1705567844937,-500.0,0.00022191,2]
[312037901,1705567844946,-500.0,0.00022191,2]
[312037902,1705567844956,-222.92,0.00022191,2]
[312037903,1705567844966,-500.0,0.00022191,2]
[312037904,1705567844976,-500.0,0.00022191,2]
[312037905,1705567844986,-500.0,0.00022191,2]
[312037906,1705567844996,-500.0,0.00022191,2]
[312037907,1705567845005,-500.0,0.00022191,2]
[312037908,1705567845015,-583.72,0.00022191,2]
[312037909,1705567845025,-500.0,0.00022191,2]
[312037910,1705567845035,-475.51063344,0.00022191,2]
[312037911,1705567845044,-500.0,0.00022191,2]
[312037912,1705567845054,-500.0,0.00022191,2]
[312037913,1705567845064,-608.02,0.00022191,2]
[312037914,1705567845074,-500.0,0.00022191,2]
[312037915,1705567845083,-532.56,0.00022191,2]
[312037916,1705567845093,-500.0,0.00022191,2]
[312037917,1705567845102,-500.0,0.00022191,2]
[312037918,1705567845111,-500.0,0.00022191,2]
[312037919,1705567845120,-500.0,0.00022191,2]
[312037920,1705567845130,-500.0,0.00022191,2]
[312037921,1705567845140,-493.97654577,0.00022191,2]
[312037922,1705567845149,-500.0,0.00022191,2]
[312037923,1705567845159,-500.0,0.00022191,2]
[312037924,1705567845168,-500.0,0.00022191,2]
[312037925,1705567845181,-501.67,0.00022191,2]
[312037926,1705567845191,-500.0,0.00022191,2]
[312037927,1705567845200,-1936.38,0.00022191,2]
[312037928,1705567845210,-931.42,0.00022191,2]
[312037929,1705567845219,-500.0,0.00022191,2]
[312037930,1705567845229,-500.0,0.00022191,2]
[312037931,1705567845238,-1339.97,0.00022191,2]
[312037932,1705567845248,-636.95,0.00022191,2]
[312037933,1705567845257,-3007.44,0.00022191,2]
[312037934,1705567845266,-500.0,0.00022191,2]
[312037935,1705567845276,-500.0,0.00022191,2]
[312037936,1705567845285,-717.7,0.00022191,2]
[312037937,1705567845296,-1598.26,0.00022191,2]
[312037938,1705567845306,-2109.79,0.00022191,2]
[312037939,1705567845315,-500.0,0.00022191,2]
[312037940,1705567845325,-5418.62,0.00022191,2]
[312037941,1705567845335,-1985.11,0.00022191,2]
[312037942,1705567845344,-500.0,0.00022191,2]
[312037943,1705567845354,-654.13,0.00022191,2]
[312037944,1705567845363,-781.69,0.00022191,2]
[312037945,1705567845373,-500.0,0.00022191,2]
[312037946,1705567845382,-500.0,0.00022191,2]
[312037947,1705567845391,-500.0,0.00022191,2]
[312037948,1705567845401,-615.63,0.00022191,2]
[312037949,1705567845410,-500.0,0.00022191,2]
[312037950,1705567845420,-500.0,0.00022191,2]
[312037951,1705567845429,-500.0,0.00022191,2]
[312037952,1705567845439,-1095.37,0.00022191,2]
[312037953,1705567845450,-1703.95,0.00022191,2]
[312037954,1705567845459,-500.0,0.00022191,2]
[312037955,1705567845468,-975.3,0.00022191,2]
[312037956,1705567845478,-711.0,0.00022191,2]
[312037957,1705567845487,-1238.22,0.00022191,2]
[312037958,1705567845497,-500.0,0.00022191,2]
[312037959,1705567845506,-500.0,0.00022191,2]
[312037960,1705567845516,-11407.95,0.00022191,2]
[312037961,1705567845526,-500.0,0.00022191,2]
[312037962,1705567845535,-533.91,0.00022191,2]
[312037963,1705567845545,-2438.38,0.00022191,2]
[312037964,1705567845554,-2492.22,0.00022191,2]
[312037965,1705567845563,-500.0,0.00022191,2]
[312037966,1705567845574,-500.0,0.00022191,2]
[312037967,1705567845583,-1219.56,0.00022191,2]
[312037968,1705567845593,-500.0,0.00022191,2]
[312037969,1705567845602,-500.0,0.00022191,2]
[312037970,1705567845715,-500.0,0.00022191,2]
[312037971,1705567845725,-775.04,0.00022191,2]